fUSD/lending_fUSD_20250503
["ID","MTS","AMOUNT","RATE_DAILY","PERIOD"]
[359755399,1746301841544,-1295.14,0.00019596,2]
[359755400,1746301841553,-450.0,0.00019596,2]
[359755401,1746301841562,-450.0,0.00019596,2]
[359755402,1746301841573,-450.0,0.00019596,2]
[359755403,1746301841582,-2032.6,0.00019596,2]
[359755404,1746301841591,-450.0,0.00019596,2]
[359755405,1746301841600,-450.0,0.00019596,2]
[359755406,1746301841609,-404.32921075,0.00019596,2]
[359755407,1746301841619,-450.0,0.00019596,2]
[359755408,1746301841628,-450.0,0.00019596,2]
[359755409,1746301841637,-980.03,0.00019596,2]
[359755410,1746301841646,-450.0,0.00019596,2]
[359755411,1746301841655,-450.0,0.00019596,2]
[359755412,1746301841665,-839.08,0.00019596,2]
[359755413,1746301841674,-450.0,0.00019596,2]
[359755414,1746301841683,-466.67,0.00019596,2]
[359755415,1746301841693,-660.0,0.00019596,2]
[359755416,1746301841702,-450.0,0.00019596,2]
[359755417,1746301841711,-450.0,0.00019596,2]
[359755418,1746301841720,-4825.7,0.00019596,2]
[359755419,1746301841730,-450.0,0.00019596,2]
[359755420,1746301841739,-1535.69,0.00019596,2]
[359755421,1746301841749,-602.34,0.00019596,2]
[359755422,1746301841759,-607.94,0.00019596,2]
[359755423,1746301841768,-500.0,0.00019596,2]
[359755424,1746301841777,-577.75,0.00019596,2]
[359755425,1746301841786,-450.0,0.00019596,2]
[359755426,1746301841795,-6113.01,0.00019596,2]
[359755427,1746301841805,-3887.84,0.00019596,2]
[359755428,1746301841814,-450.0,0.00019596,2]
[359755429,1746301841823,-450.0,0.00019596,2]
[359755430,1746301841833,-450.0,0.00019596,2]
[359755431,1746301841842,-666.21,0.00019596,2]
[359755432,1746301841851,-457.79,0.00019596,2]
[359755433,1746301841861,-643.68,0.00019596,2]
[359755434,1746301841874,-3979.13,0.00019596,2]
[359755435,1746301841884,-580.05,0.00019596,2]
[359755436,1746301841893,-798.79,0.00019596,2]
[359755437,1746301841902,-450.0,0.00019596,2]
[359755438,1746301841912,-484.28,0.00019596,2]
[359755439,1746301841921,-83991.74,0.00019596,2]
[359755440,1746301841931,-462.01,0.00019596,2]
[359755441,1746301841940,-450.0,0.00019596,2]
[359755442,1746301841949,-1426.84,0.00019596,2]
[359755443,1746301841959,-500.0,0.00019596,2]
[359755444,1746301841968,-450.0,0.00019596,2]
[359755445,1746301841978,-450.0,0.00019596,2]
[359755446,1746301841987,-3626.94,0.00019596,2]
[359755447,1746301841997,-450.0,0.00019596,2]
[359755448,1746301842007,-17865.17,0.00019596,2]
[359755449,1746301842019,-592.63,0.00019596,2]
[359755450,1746301842028,-450.0,0.00019596,2]
[359755451,1746301842037,-450.0,0.00019596,2]
[359755452,1746301842047,-450.0,0.00019596,2]
[359755453,1746301842056,-1228.46,0.00019596,2]
[359755454,1746301842066,-450.0,0.00019596,2]
[359755455,1746301842075,-792.18,0.00019596,2]
[359755456,1746301842085,-1516.22,0.00019596,2]
[359755457,1746301842095,-11176.54,0.00019596,2]
[359755458,1746301842105,-450.0,0.00019596,2]
[359755459,1746301842114,-450.0,0.00019596,2]
[359755460,1746301842124,-450.0,0.00019596,2]
[359755461,1746301842133,-450.0,0.00019596,2]
[359755462,1746301842144,-450.0,0.00019596,2]
[359755463,1746301842155,-450.0,0.00019596,2]
[359755464,1746301842166,-450.0,0.00019596,2]
[359755465,1746301842175,-471.26,0.00019596,2]
[359755466,1746301842184,-87433.61,0.00019596,2]
[359755467,1746301842196,-636.65,0.00019596,2]
[359755468,1746301842206,-1134.65,0.00019596,2]
[359755469,1746301842216,-481.05,0.00019596,2]
[359755470,1746301842226,-450.0,0.00019596,2]
[359755471,1746301842235,-476.49,0.00019596,2]
[359755472,1746301842245,-486.03,0.00019596,2]
[359755473,1746301842254,-450.0,0.00019596,2]
[359755474,1746301842266,-556.88,0.00019596,2]
[359755475,1746301842276,-450.0,0.00019596,2]
[359755476,1746301842285,-450.0,0.00019596,2]
[359755477,1746301842295,-450.0,0.00019596,2]
[359755478,1746301842304,-807.25,0.00019596,2]
[359755479,1746301842314,-792.07,0.00019596,2]
[359755480,1746301842323,-450.0,0.00019596,2]
[359755481,1746301842332,-450.0,0.00019596,2]
[359755482,1746301842342,-476.75,0.00019596,2]
[359755483,1746301842351,-450.0,0.00019596,2]
[359755484,1746301842361,-453.29,0.00019596,2]
[359755485,1746301842371,-1823.48,0.00019596,2]
[359755486,1746301842381,-512.2,0.00019596,2]
[359755487,1746301842391,-450.0,0.00019596,2]
[359755488,1746301842401,-450.0,0.00019596,2]
[359755489,1746301842411,-557.94548119,0.00019596,2]
[359755491,1746301842421,-1837.43,0.00019596,2]
[359755492,1746301842430,-510.62,0.00019596,2]
[359755493,1746301842440,-450.0,0.00019596,2]
[359755494,1746301842449,-620.45,0.00019596,2]
[359755495,1746301842458,-450.0,0.00019596,2]
[359755496,1746301842468,-1350.13,0.00019596,2]
[359755497,1746301842478,-471.62,0.00019596,2]
[359755498,1746301842488,-831.59,0.00019596,2]
[359755499,1746301842498,-450.0,0.00019597,2]
[359755500,1746301842507,-450.0,0.00019597,2]
[359755501,1746301842521,-540.22183034,0.00019597,2]
[359755502,1746301842531,-450.0,0.00019597,2]
[359755503,1746301842541,-486.14,0.00019597,2]
[359755504,1746301842551,-450.0,0.00019597,2]
[359755506,1746301842561,-450.0,0.00019597,2]
[359755508,1746301842572,-450.0,0.00019597,2]
[359755510,1746301842582,-450.0,0.00019597,2]
[359755512,1746301842594,-450.0,0.00019597,2]
[359755515,1746301842605,-450.0,0.00019597,2]
[359755517,1746301842614,-450.0,0.00019597,2]
[359755518,1746301842624,-194.53251863,0.00019597,2]
[359755519,1746301842634,-450.0,0.00019597,2]
[359755520,1746301842644,-450.0,0.00019597,2]
[359755521,1746301842654,-450.0,0.00019597,2]
[359755522,1746301842664,-450.0,0.00019597,2]
[359755523,1746301842674,-450.0,0.00019597,2]
[359755524,1746301842683,-450.0,0.00019597,2]
[359755525,1746301842693,-519.49,0.00019597,2]
[359755526,1746301842702,-450.0,0.00019597,2]
[359755527,1746301842712,-687.22,0.00019597,2]
[359755528,1746301842722,-450.0,0.00019597,2]
[359755529,1746301842732,-450.0,0.00019597,2]
[359755530,1746301842742,-479.20352983,0.00019597,2]
[359755531,1746301842752,-482.04692344,0.00019597,2]
[359755532,1746301842765,-521.43,0.00019597,2]
[359755533,1746301842775,-473.97622075,0.00019597,2]
[359755534,1746301842785,-529.54923781,0.00019597,2]
[359755535,1746301842795,-450.0,0.00019597,2]
[359755536,1746301842805,-450.0,0.00019597,2]
[359755537,1746301842815,-523.20208212,0.00019597,2]
[359755538,1746301842824,-450.0,0.00019597,2]
[359755539,1746301842834,-450.0,0.00019597,2]
[359755540,1746301842843,-450.0,0.00019597,2]
[359755541,1746301842852,-450.0,0.00019597,2]
[359755542,1746301842862,-564.89707459,0.00019597,2]
[359755543,1746301842872,-510.92426429,0.00019597,2]
[359755544,1746301842881,-450.0,0.00019597,2]
[359755545,1746301842890,-450.0,0.00019597,2]
[359755546,1746301842900,-450.0,0.00019597,2]
[359755547,1746301842909,-533.95367948,0.00019597,2]
[359755548,1746301842919,-450.0,0.00019597,2]
[359755549,1746301842928,-450.0,0.00019597,2]
[359755550,1746301842938,-307.94111165,0.00019597,2]
[359755551,1746301842948,-450.0,0.00019597,2]
[359755552,1746301842957,-450.0,0.00019597,2]
[359755561,1746301843177,-450.0,0.00019597,2]
[359755563,1746301843187,-450.0,0.00019597,2]
[359755564,1746301843196,-546.24213029,0.00019597,2]
[359755566,1746301843205,-450.0,0.00019597,2]
[359755567,1746301843215,-450.0,0.00019597,2]
[359755569,1746301843224,-450.0,0.00019597,2]
[359755571,1746301843234,-450.0,0.00019597,2]
[359755573,1746301843243,-450.0,0.00019597,2]
[359755575,1746301843252,-450.0,0.00019597,2]
[359755577,1746301843263,-450.0,0.00019597,2]
[359755579,1746301843272,-483.42226741,0.00019597,2]
[359755581,1746301843282,-450.0,0.00019597,2]
[359755583,1746301843291,-450.0,0.00019597,2]
[359755585,1746301843301,-450.0,0.00019597,2]
[359755587,1746301843310,-500.0,0.00019597,2]
[359755589,1746301843319,-480.61657555,0.00019597,2]
[359755591,1746301843328,-475.12,0.00019597,2]
[359755593,1746301843337,-167.17367774,0.00019597,2]
[359755595,1746301843347,-450.0,0.00019597,2]
[359755597,1746301843357,-450.0,0.00019597,2]
[359755599,1746301843366,-561.38599026,0.00019597,2]
[359755601,1746301843375,-519.47554658,0.00019597,2]
[359755603,1746301843385,-450.0,0.00019597,2]
[359755605,1746301843395,-185.50934107,0.00019597,2]
[359755607,1746301843404,-511.54468994,0.00019597,2]
[359755609,1746301843414,-450.0,0.00019597,2]
[359755611,1746301843423,-450.0,0.00019597,2]
[359755613,1746301843432,-450.0,0.00019597,2]
[359755615,1746301843442,-564.45,0.00019597,2]
[359755617,1746301843451,-450.0,0.00019597,2]
[359755619,1746301843461,-869.18,0.00019597,2]
[359755621,1746301843470,-450.0,0.00019597,2]
[359755623,1746301843479,-450.0,0.00019597,2]
[359755625,1746301843488,-450.0,0.00019597,2]
[359755627,1746301843497,-474.32117263,0.00019597,2]
[359755629,1746301843507,-450.0,0.00019597,2]
[359755631,1746301843517,-450.0,0.00019597,2]
[359755632,1746301843526,-450.0,0.00019597,2]
[359755633,1746301843536,-869.32,0.00019597,2]
[359755634,1746301843547,-613.27,0.00019597,2]
[359755635,1746301843557,-450.0,0.00019597,2]
[359755636,1746301843566,-450.0,0.00019597,2]
[359755637,1746301843575,-450.0,0.00019597,2]
[359755638,1746301843584,-450.0,0.00019597,2]
[359755639,1746301843594,-450.0,0.00019597,2]
[359755640,1746301843604,-450.0,0.00019597,2]
[359755641,1746301843613,-405.49534162,0.00019597,2]
[359755642,1746301843623,-450.0,0.00019597,2]
[359755643,1746301843632,-450.0,0.00019597,2]
[359755644,1746301843642,-584.92,0.00019597,2]
[359755645,1746301843652,-450.0,0.00019597,2]
[359755646,1746301843662,-450.0,0.00019597,2]
[359755647,1746301843671,-450.0,0.00019597,2]
[359755648,1746301843681,-450.0,0.00019597,2]
[359755649,1746301843691,-505.37,0.00019597,2]
[359755650,1746301843701,-232.03197545,0.00019597,2]
[359755651,1746301843710,-450.0,0.00019597,2]
[359755652,1746301843719,-450.0,0.00019597,2]
[359755653,1746301843729,-450.0,0.00019597,2]
[359755654,1746301843738,-450.0,0.00019597,2]
[359755655,1746301843748,-450.0,0.00019597,2]
[359755656,1746301843757,-555.99,0.00019597,2]
[359755657,1746301843768,-529.98,0.00019597,2]
[359755658,1746301843777,-202.6477267,0.00019597,2]
[359755659,1746301843786,-615.66,0.00019597,2]
[359755660,1746301843795,-450.0,0.00019597,2]
[359755661,1746301843805,-450.0,0.00019597,2]
[359755662,1746301843814,-450.0,0.00019597,2]
[359755663,1746301843823,-450.0,0.00019597,2]
[359755664,1746301843832,-639.74,0.00019597,2]
[359755665,1746301843842,-450.0,0.00019597,2]
[359755666,1746301843851,-450.0,0.00019597,2]
[359755667,1746301843861,-709.68,0.00019597,2]
[359755668,1746301843870,-450.0,0.00019597,2]
[359755669,1746301843882,-450.0,0.00019597,2]
[359755670,1746301843891,-450.0,0.00019597,2]
[359755671,1746301843901,-450.0,0.00019597,2]
[359755672,1746301843910,-450.0,0.00019597,2]
[359755673,1746301843919,-1061.78,0.00019597,2]
[359755674,1746301843928,-450.0,0.00019597,2]
[359755675,1746301843937,-450.0,0.00019597,2]
[359755676,1746301843947,-670.58,0.00019597,2]
[359755677,1746301843957,-611.52,0.00019597,2]
[359755678,1746301843966,-860.28,0.00019597,2]
[359755679,1746301843975,-458.93,0.00019597,2]
[359755680,1746301843985,-494.41,0.00019597,2]
[359755681,1746301843994,-450.0,0.00019597,2]
[359755682,1746301844003,-450.0,0.00019597,2]
[359755683,1746301844013,-1210.2,0.00019597,2]
[359755684,1746301844022,-519.35,0.00019597,2]
[359755685,1746301844032,-450.0,0.00019597,2]
[359755686,1746301844042,-450.0,0.00019597,2]
[359755687,1746301844051,-450.0,0.00019597,2]
[359755688,1746301844062,-206.7673008,0.00019597,2]
[359755689,1746301844071,-881.57,0.00019597,2]
[359755690,1746301844081,-450.0,0.00019597,2]
[359755691,1746301844091,-450.0,0.00019597,2]
[359755692,1746301844102,-450.0,0.00019597,2]
[359755693,1746301844112,-490.88189455,0.00019597,2]
[359755694,1746301844122,-450.0,0.00019597,2]
[359755695,1746301844131,-450.0,0.00019597,2]
[359755696,1746301844142,-470.63,0.00019597,2]
[359755697,1746301844152,-450.0,0.00019597,2]
[359755698,1746301844162,-450.0,0.00019597,2]
[359755699,1746301844172,-548.94,0.00019597,2]
[359755700,1746301844181,-450.0,0.00019597,2]
[359755701,1746301844193,-4858.06,0.00019597,2]
[359755702,1746301844203,-8467.98,0.00019597,2]
[359755703,1746301844213,-450.0,0.00019597,2]
[359755704,1746301844223,-450.0,0.00019597,2]
[359755705,1746301844233,-555.4,0.00019597,2]
[359755706,1746301844242,-450.0,0.00019597,2]
[359755707,1746301844252,-450.0,0.00019597,2]
[359755708,1746301844262,-693.22,0.00019597,2]
[359755709,1746301844271,-500.0,0.00019597,2]
[359755710,1746301844281,-2081.08,0.00019597,2]
[359755711,1746301844291,-196.3745295,0.00019597,2]
[359755712,1746301844300,-450.0,0.00019597,2]
[359755713,1746301844309,-487.02448323,0.00019597,2]
[359755714,1746301844319,-878.16,0.00019597,2]
[359755715,1746301844328,-450.0,0.00019597,2]
[359755716,1746301844337,-450.0,0.00019597,2]
[359755717,1746301844348,-479.51,0.00019597,2]
[359755718,1746301844357,-450.0,0.00019597,2]
[359755719,1746301844367,-450.0,0.00019597,2]
[359755720,1746301844376,-1922.31,0.00019597,2]
[359755721,1746301844386,-725.14,0.00019597,2]
[359755722,1746301844396,-589.55,0.00019597,2]
[359755723,1746301844406,-450.0,0.00019597,2]
[359755724,1746301844416,-450.0,0.00019597,2]
[359755725,1746301844426,-450.0,0.00019597,2]
[359755726,1746301844436,-2040.18,0.00019597,2]
[359755727,1746301844446,-450.0,0.00019597,2]
[359755728,1746301844456,-450.0,0.00019597,2]
[359755729,1746301844465,-450.0,0.00019597,2]
[359755730,1746301844475,-450.0,0.00019597,2]
[359755731,1746301844484,-450.0,0.00019597,2]
[359755732,1746301844494,-450.0,0.00019597,2]
[359755733,1746301844504,-450.0,0.00019597,2]
[359755734,1746301844514,-451.76,0.00019597,2]
[359755735,1746301844524,-504.08102465,0.00019597,2]
[359755736,1746301844533,-575.12,0.00019597,2]
[359755737,1746301844543,-450.0,0.00019597,2]
[359755738,1746301844553,-1247.41,0.00019597,2]
[359755739,1746301844563,-450.0,0.00019597,2]
[359755740,1746301844572,-450.0,0.00019597,2]
[359755741,1746301844582,-450.0,0.00019597,2]
[359755742,1746301844592,-518.19,0.00019597,2]
[359755743,1746301844602,-490.32,0.00019597,2]
[359755744,1746301844612,-483.55,0.00019597,2]
[359755745,1746301844622,-450.0,0.00019597,2]
[359755746,1746301844632,-450.0,0.00019597,2]
[359755747,1746301844642,-450.0,0.00019597,2]
[359755748,1746301844651,-450.0,0.00019597,2]
[359755749,1746301844661,-450.0,0.00019597,2]
[359755750,1746301844671,-546.78947927,0.00019598,2]
[359755751,1746301844680,-451.40881658,0.00019598,2]
[359755752,1746301844690,-450.0,0.00019598,2]
[359755753,1746301844700,-450.0,0.00019598,2]
[359755754,1746301844710,-450.0,0.00019598,2]
[359755755,1746301844720,-450.0,0.00019598,2]
[359755756,1746301844729,-521.70651769,0.00019598,2]
[359755757,1746301844739,-15753.59,0.00019598,2]
[359755758,1746301844749,-4153.24,0.00019598,2]
[359755759,1746301844758,-1038.01081046,0.000196,2]
[359755760,1746301844770,-1347.0,0.000196,2]
[359755761,1746301844780,-2629.95573045,0.00019631,2]
[359755762,1746301844790,-700.455051,0.00019642,2]
[359755763,1746301844800,-999.0,0.00019671,2]
[359755764,1746301844809,-2629.95573045,0.00019676,2]
[359755765,1746301844819,-2629.95573045,0.0001972,2]
[359755766,1746301844829,-2629.95573045,0.00019765,2]
[359755767,1746301844839,-500.0,0.00019781,2]
[359755768,1746301844848,-283.0,0.00019781,2]
[359755769,1746301844858,-1291.6098677,0.00019799,2]
[359755770,1746301844867,-1000.0,0.000198,2]
[359755771,1746301844877,-287.0,0.00019808,2]
[359755772,1746301844887,-74300.28627454,0.0001981,2]
[359755773,1746301844898,-2629.95573045,0.0001981,2]
[359755774,1746301844908,-200.0,0.0001984,2]
[359755775,1746301844918,-700.4550511,0.00019843,2]
[359755776,1746301844928,-450.0,0.00019855,2]
[359755777,1746301844938,-2629.95573045,0.00019855,2]
[359755778,1746301844947,-600.23325229,0.00019858,2]
[359755779,1746301844957,-500.0,0.00019867,2]
[359755780,1746301844966,-500.0,0.00019867,2]
[359755781,1746301844976,-147599.62582803,0.00019868,2]
[359755782,1746301844985,-450.0,0.00019869,2]
[359755783,1746301844995,-450.0,0.00019869,2]
[359755784,1746301845004,-500.0,0.00019869,2]
[359755785,1746301845015,-450.0,0.00019869,2]
[359755786,1746301845025,-450.0,0.00019869,2]
[359755787,1746301845034,-450.0,0.00019869,2]
[359755788,1746301845044,-462.31,0.00019869,2]
[359755789,1746301845055,-450.0,0.00019869,2]
[359755790,1746301845065,-450.0,0.00019869,2]
[359755791,1746301845075,-1097.27,0.00019869,2]
[359755792,1746301845084,-500.0,0.00019869,2]
[359755793,1746301845094,-450.0,0.00019869,2]
[359755794,1746301845103,-450.0,0.00019869,2]
[359755795,1746301845113,-450.0,0.00019869,2]
[359755796,1746301845123,-450.0,0.00019869,2]
[359755797,1746301845132,-577.35,0.00019869,2]
[359755798,1746301845146,-450.0,0.00019869,2]
[359755799,1746301845158,-1040.58,0.00019869,2]
[359755800,1746301845169,-514.89,0.00019869,2]
[359755801,1746301845179,-450.0,0.00019869,2]
[359755802,1746301845189,-5307.41,0.00019869,2]
[359755803,1746301845198,-450.0,0.00019869,2]
[359755804,1746301845207,-450.0,0.00019869,2]
[359755805,1746301845217,-1340.13,0.00019869,2]
[359755806,1746301845227,-450.0,0.00019869,2]
[359755807,1746301845236,-450.0,0.00019869,2]
[359755808,1746301845246,-535.38,0.00019869,2]
[359755809,1746301845255,-450.0,0.00019869,2]
[359755810,1746301845265,-450.0,0.00019869,2]
[359755811,1746301845274,-450.0,0.00019869,2]
[359755812,1746301845284,-720.19,0.00019869,2]
[359755813,1746301845293,-450.0,0.00019869,2]
[359755814,1746301845304,-450.0,0.00019869,2]
[359755815,1746301845315,-450.0,0.00019869,2]
[359755816,1746301845326,-450.0,0.00019869,2]
[359755817,1746301845335,-450.0,0.00019869,2]
[359755818,1746301845345,-1785.18,0.00019869,2]
[359755819,1746301845355,-536.35,0.00019869,2]
[359755820,1746301845364,-667.39,0.00019869,2]
[359755821,1746301845374,-450.0,0.00019869,2]
[359755822,1746301845383,-450.0,0.00019869,2]
[359755823,1746301845393,-450.0,0.00019869,2]
[359755824,1746301845402,-450.0,0.00019869,2]
[359755825,1746301845412,-450.0,0.00019869,2]
[359755826,1746301845423,-450.0,0.00019869,2]
[359755827,1746301845432,-4084.64,0.00019869,2]
[359755828,1746301845441,-3713.12,0.00019869,2]
[359755829,1746301845451,-450.0,0.00019869,2]
[359755830,1746301845461,-450.0,0.00019869,2]
[359755831,1746301845470,-450.0,0.00019869,2]
[359755832,1746301845480,-581.40503227,0.00019869,2]
[359755833,1746301845489,-450.0,0.00019869,2]
[359755834,1746301845499,-450.0,0.00019869,2]
[359755835,1746301845509,-2551.38,0.00019869,2]
[359755836,1746301845519,-467.71,0.00019869,2]
[359755837,1746301845584,-888.82,0.00019869,2]
[359755838,1746301845593,-450.0,0.0001987,2]
[359755839,1746301845603,-314.97,0.0001987,2]
[359755840,1746301845612,-450.0,0.0001987,2]
[359755841,1746301845621,-450.0,0.0001987,2]
[359755842,1746301845631,-609.98,0.0001987,2]
[359755843,1746301845640,-350.27,0.0001987,2]
[359755844,1746301845650,-159.0,0.0001987,2]
[359755845,1746301845660,-450.0,0.0001987,2]
[359755846,1746301845670,-450.0,0.0001987,2]
[359755847,1746301845679,-441.81501817,0.0001987,2]
[359755848,1746301845688,-450.0,0.0001987,2]
[359755849,1746301845698,-450.0,0.0001987,2]
[359755850,1746301845707,-450.0,0.0001987,2]
[359755851,1746301845716,-450.0,0.0001987,2]
[359755852,1746301845725,-889.35,0.0001987,2]
[359755853,1746301845735,-450.0,0.0001987,2]
[359755854,1746301845744,-605.12,0.0001987,2]
[359755855,1746301845753,-450.0,0.0001987,2]
[359755856,1746301845763,-450.0,0.0001987,2]
[359755857,1746301845772,-450.0,0.0001987,2]
[359755858,1746301845781,-450.0,0.0001987,2]
[359755859,1746301845790,-450.0,0.0001987,2]
[359755860,1746301845799,-450.0,0.0001987,2]
[359755861,1746301845808,-450.0,0.0001987,2]
[359755862,1746301845817,-450.0,0.0001987,2]
[359755863,1746301845826,-450.0,0.0001987,2]
[359755864,1746301845835,-450.0,0.0001987,2]
[359755865,1746301845844,-450.0,0.0001987,2]
[359755866,1746301845853,-322.41338905,0.0001987,2]
[359755867,1746301845863,-450.0,0.0001987,2]
[359755868,1746301845872,-450.0,0.0001987,2]
[359755869,1746301845881,-550.25,0.0001987,2]
[359755870,1746301845890,-537.08,0.0001987,2]
[359755871,1746301845899,-450.0,0.0001987,2]
[359755872,1746301845908,-450.0,0.0001987,2]
[359755873,1746301845918,-450.0,0.0001987,2]
[359755874,1746301845927,-450.0,0.0001987,2]
[359755875,1746301845936,-450.0,0.0001987,2]
[359755876,1746301845945,-1295.14,0.0001987,2]
[359755877,1746301845956,-450.0,0.0001987,2]
[359755878,1746301845966,-450.0,0.0001987,2]
[359755879,1746301845975,-450.0,0.0001987,2]
[359755880,1746301845984,-2032.6,0.0001987,2]
[359755881,1746301845993,-450.0,0.0001987,2]
[359755882,1746301846003,-450.0,0.0001987,2]
[359755883,1746301846012,-450.0,0.0001987,2]
[359755884,1746301846022,-980.03,0.0001987,2]
[359755885,1746301846032,-839.08,0.0001987,2]
[359755886,1746301846042,-450.0,0.0001987,2]
[359755887,1746301846051,-466.67,0.0001987,2]
[359755888,1746301846061,-660.0,0.0001987,2]
[359755889,1746301846071,-450.0,0.0001987,2]
[359755890,1746301846083,-4825.7,0.0001987,2]
[359755891,1746301846092,-1535.69,0.0001987,2]
[359755892,1746301846101,-450.0,0.0001987,2]
[359755893,1746301846111,-999.0,0.0001987,2]
[359755894,1746301846120,-602.34,0.0001987,2]
[359755895,1746301846129,-607.94,0.0001987,2]
[359755896,1746301846139,-577.75,0.0001987,2]
[359755897,1746301846152,-450.0,0.0001987,2]
[359755898,1746301846161,-6113.01,0.0001987,2]
[359755899,1746301846171,-3887.84,0.0001987,2]
[359755900,1746301846180,-450.0,0.0001987,2]
[359755901,1746301846191,-450.0,0.0001987,2]
[359755902,1746301846201,-450.0,0.0001987,2]
[359755903,1746301846211,-666.21,0.0001987,2]
[359755904,1746301846222,-457.79,0.0001987,2]
[359755905,1746301846233,-643.68,0.0001987,2]
[359755906,1746301846243,-3979.13,0.0001987,2]
[359755907,1746301846253,-580.05,0.0001987,2]
[359755908,1746301846263,-798.79,0.0001987,2]
[359755909,1746301846272,-450.0,0.0001987,2]
[359755910,1746301846281,-484.28,0.0001987,2]
[359755911,1746301846291,-83991.74,0.0001987,2]
[359755912,1746301846301,-462.01,0.0001987,2]
[359755914,1746301846311,-450.0,0.0001987,2]
[359755915,1746301846321,-1426.84,0.0001987,2]
[359755916,1746301846331,-450.0,0.0001987,2]
[359755917,1746301846340,-450.0,0.0001987,2]
[359755918,1746301846349,-3626.94,0.0001987,2]
[359755919,1746301846359,-17865.17,0.0001987,2]
[359755920,1746301846368,-592.63,0.0001987,2]
[359755921,1746301846377,-450.0,0.0001987,2]
[359755922,1746301846387,-450.0,0.0001987,2]
[359755923,1746301846396,-1228.46,0.0001987,2]
[359755924,1746301846405,-792.18,0.0001987,2]
[359755925,1746301846416,-1516.22,0.0001987,2]
[359755926,1746301846437,-11176.54,0.0001987,2]
[359755927,1746301846460,-450.0,0.0001987,2]
[359755928,1746301846483,-450.0,0.0001987,2]
[359755929,1746301846506,-450.0,0.0001987,2]
[359755930,1746301846537,-450.0,0.0001987,2]
[359755931,1746301846569,-450.0,0.0001987,2]
[359755932,1746301846602,-450.0,0.0001987,2]
[359755933,1746301846635,-450.0,0.0001987,2]
[359755934,1746301846669,-471.26,0.0001987,2]
[359755935,1746301846701,-87433.61,0.0001987,2]
[359755936,1746301846721,-636.65,0.0001987,2]
[359755937,1746301846743,-1134.65,0.0001987,2]
[359755938,1746301846764,-481.05,0.0001987,2]
[359755939,1746301846786,-450.0,0.0001987,2]
[359755940,1746301846808,-476.49,0.0001987,2]
[359755941,1746301846830,-486.03,0.0001987,2]
[359755942,1746301846851,-450.0,0.0001987,2]
[359755943,1746301846872,-556.88,0.0001987,2]
[359755944,1746301846893,-450.0,0.0001987,2]
[359755945,1746301846914,-450.0,0.0001987,2]
[359755946,1746301846936,-450.0,0.0001987,2]
[359755947,1746301846958,-807.25,0.0001987,2]
[359755948,1746301846979,-792.07,0.0001987,2]
[359755949,1746301846999,-450.0,0.0001987,2]